[Event "The Schackveckan 2023: IM-turnering"]
[Site "Goteborgs schackcentrum, Vegagatan 20, Gothenburg, Sweden"]
[Date "2023.08.10"]
[Round "8.3"]
[White "Tryggestad, Andreas Garberg"]
[Black "Karlsson, Stefan"]
[Result "1-0"]
[TimeControl "90 minutes for 40 moves + 30 minutes for the rest of the game + 30 seconds per move from move one."]
[WhiteTitle "FM"]
[WhiteFideId "1513338"]
[BlackFideId "1771183"]
[WhiteElo "2233"]
[BlackElo "1925"]

1. d4 {[%clk 01:30:56]} {[%emt 00:00:04]} Nf6 {[%clk 01:30:52]} {[%emt
00:00:08]} 2. c4 {[%clk 01:31:22]} {[%emt 00:00:06]} g6 {[%clk 01:31:17]}
{[%emt 00:00:04]} 3. Nc3 {[%clk 01:31:48]} {[%emt 00:00:04]} Bg7 {[%clk
01:31:43]} {[%emt 00:00:04]} 4. e4 {[%clk 01:32:13]} {[%emt 00:00:06]} d6
{[%clk 01:32:10]} {[%emt 00:00:04]} 5. h3 {[%clk 01:32:39]} {[%emt 00:00:04]}
O-O {[%clk 01:32:18]} {[%emt 00:00:21]} 6. Be3 {[%clk 01:33:05]} {[%emt
00:00:05]} e5 {[%clk 01:31:19]} {[%emt 00:01:28]} 7. d5 {[%clk 01:33:27]}
{[%emt 00:00:09]} Na6 {[%clk 01:30:46]} {[%emt 00:01:02]} 8. g4 {[%clk
01:33:52]} {[%emt 00:00:05]} Nc5 {[%clk 01:29:28]} {[%emt 00:01:47]} 9. f3
{[%clk 01:34:17]} {[%emt 00:00:07]} a5 {[%clk 01:29:25]} {[%emt 00:00:32]} 10.
Qd2 {[%clk 01:33:48]} {[%emt 00:00:59]} c6 {[%clk 01:29:35]} {[%emt 00:00:20]}
11. Nge2 {[%clk 01:33:11]} {[%emt 00:01:05]} cxd5 {[%clk 01:22:07]} {[%emt
00:08:00]} 12. cxd5 {[%clk 01:33:35]} {[%emt 00:00:06]} Bd7 {[%clk 01:19:55]}
{[%emt 00:02:41]} 13. Ng3 {[%clk 01:32:19]} {[%emt 00:01:46]} a4 {[%clk
01:16:13]} {[%emt 00:04:13]} 14. h4 {[%clk 01:29:40]} {[%emt 00:03:09]} Qa5
{[%clk 01:15:31]} {[%emt 00:01:11]} 15. Bh3 {[%clk 00:57:02]} {[%emt 00:33:09]}
Be8 {[%clk 01:07:33]} {[%emt 00:08:27]} 16. Kf2 {[%clk 00:55:07]} {[%emt
00:02:26]} b5 {[%clk 01:01:32]} {[%emt 00:06:31]} 17. Rhc1 {[%clk 00:35:06]}
{[%emt 00:20:30]} b4 {[%clk 00:42:41]} {[%emt 00:19:21]} 18. Nd1 {[%clk
00:35:33]} {[%emt 00:00:04]} Nfd7 {[%clk 00:37:42]} {[%emt 00:05:29]} 19. Bf1
{[%clk 00:25:19]} {[%emt 00:10:44]} h5 {[%clk 00:24:28]} {[%emt 00:13:44]} 20.
gxh5 {[%clk 00:11:32]} {[%emt 00:14:18]} f5 {[%clk 00:24:15]} {[%emt 00:00:42]}
21. exf5 {[%clk 00:07:52]} {[%emt 00:04:10]} gxf5 {[%clk 00:23:38]} {[%emt
00:01:07]} 22. h6 {[%clk 00:08:17]} {[%emt 00:00:06]} f4 {[%clk 00:19:26]}
{[%emt 00:04:41]} 23. hxg7 {[%clk 00:08:45]} {[%emt 00:00:03]} fxg3+ {[%clk
00:16:08]} {[%emt 00:03:46]} 24. Kg2 {[%clk 00:06:10]} {[%emt 00:03:05]} Rf7
{[%clk 00:14:57]} {[%emt 00:01:41]} 25. Bxc5 {[%clk 00:05:07]} {[%emt
00:01:34]} Nxc5 {[%clk 00:14:49]} {[%emt 00:00:38]} 26. Qh6 {[%clk 00:05:13]}
{[%emt 00:00:24]} Rxg7 {[%clk 00:14:53]} {[%emt 00:00:26]} 27. Qxd6 {[%clk
00:05:42]} {[%emt 00:00:02]} Qd8 {[%clk 00:14:18]} {[%emt 00:01:04]} 28. Qxd8
{[%clk 00:05:47]} {[%emt 00:00:25]} Rxd8 {[%clk 00:14:38]} {[%emt 00:00:09]} 29.
Rxc5 {[%clk 00:06:15]} {[%emt 00:00:02]} Bh5 {[%clk 00:14:52]} {[%emt
00:00:16]} 30. Ne3 {[%clk 00:01:31]} {[%emt 00:05:14]} Rf8 {[%clk 00:15:12]}
{[%emt 00:00:10]} 31. Be2 {[%clk 00:01:32]} {[%emt 00:00:29]} e4 {[%emt
00:01:12]} 32. Rf1 {[%clk 00:01:53]} Rgf7 {[%clk 00:15:07]} {[%emt 00:00:03]}
33. Kxg3 {[%clk 00:01:28]} {[%emt 00:00:55]} Bxf3 {[%clk 00:15:11]} {[%emt
00:00:26]} 34. Rc2 {[%clk 00:01:13]} {[%emt 00:00:45]} Rf4 {[%clk 00:13:18]}
{[%emt 00:02:23]} 35. d6 {[%clk 00:01:11]} {[%emt 00:00:32]} R4f7 {[%clk
00:13:22]} {[%emt 00:00:26]} 36. Bc4 {[%clk 00:01:32]} {[%emt 00:00:09]} 1-0

[Event "The Schackveckan 2023: IM-turnering"]
[Site "Goteborgs schackcentrum, Vegagatan 20, Gothenburg, Sweden"]
[Date "2023.08.10"]
[Round "8.4"]
[White "Hector, Jonny"]
[Black "Kistrup, Nicolai"]
[Result "1-0"]
[TimeControl "90 minutes for 40 moves + 30 minutes for the rest of the game + 30 seconds per move from move one."]
[WhiteTitle "GM"]
[BlackTitle "FM"]
[WhiteFideId "1700090"]
[BlackFideId "1444816"]
[WhiteElo "2466"]
[BlackElo "2339"]

1. e4 {[%clk 01:30:55]} {[%emt 00:00:04]} c5 {[%clk 01:29:51]} {[%emt
00:01:03]} 2. Nf3 {[%clk 01:31:19]} {[%emt 00:00:12]} d6 {[%clk 01:30:16]}
{[%emt 00:00:06]} 3. d4 {[%clk 01:31:38]} {[%emt 00:00:10]} cxd4 {[%clk
01:30:41]} {[%emt 00:00:05]} 4. Nxd4 {[%clk 01:32:00]} {[%emt 00:00:08]} Nf6
{[%clk 01:31:09]} {[%emt 00:00:03]} 5. Nc3 {[%clk 01:32:19]} {[%emt 00:00:10]}
a6 {[%clk 01:31:32]} {[%emt 00:00:08]} 6. Qe2 {[%clk 01:29:29]} {[%emt
00:03:19]} e5 {[%clk 01:27:32]} {[%emt 00:04:30]} 7. Nf5 {[%clk 01:29:05]}
{[%emt 00:00:54]} d5 {[%clk 01:26:00]} {[%emt 00:02:02]} 8. Bg5 {[%clk
01:27:25]} {[%emt 00:02:09]} d4 {[%clk 01:25:37]} {[%emt 00:00:54]} 9. O-O-O
{[%clk 01:18:58]} {[%emt 00:08:56]} Nc6 {[%clk 01:23:42]} {[%emt 00:02:27]} 10.
f4 {[%clk 01:12:19]} {[%emt 00:07:08]} Qa5 {[%clk 01:23:27]} {[%emt 00:00:46]}
11. fxe5 {[%clk 01:05:28]} {[%emt 00:07:20]} dxc3 {[%clk 01:20:43]} {[%emt
00:03:15]} 12. exf6 {[%clk 01:04:41]} {[%emt 00:01:17]} Qxa2 {[%clk 01:08:28]}
{[%emt 00:12:45]} 13. bxc3 {[%clk 01:04:48]} {[%emt 00:00:22]} Ba3+ {[%clk
00:52:09]} {[%emt 00:16:49]} 14. Kd2 {[%clk 01:05:11]} {[%emt 00:00:07]} O-O
{[%clk 00:49:35]} {[%emt 00:03:05]} 15. fxg7 {[%clk 00:50:16]} {[%emt
00:15:24]} Re8 {[%clk 00:46:18]} {[%emt 00:03:48]} 16. Nh6+ {[%clk 00:44:33]}
{[%emt 00:06:12]} Kxg7 {[%clk 00:46:16]} {[%emt 00:00:33]} 17. Qf2 {[%clk
00:43:13]} {[%emt 00:01:49]} Qe6 {[%clk 00:34:35]} {[%emt 00:12:11]} 18. Nf5+
{[%clk 00:41:43]} {[%emt 00:02:00]} Kh8 {[%clk 00:23:56]} {[%emt 00:11:09]} 19.
Qh4 {[%clk 00:37:25]} {[%emt 00:04:48]} Qg6 {[%clk 00:21:48]} {[%emt 00:02:39]}
20. Bd3 {[%clk 00:35:59]} {[%emt 00:01:55]} Re6 {[%clk 00:06:57]} {[%emt
00:15:57]} 21. Rhf1 {[%clk 00:32:07]} {[%emt 00:04:21]} Bf8 {[%clk 00:03:53]}
{[%emt 00:03:35]} 22. Nd4 {[%clk 00:29:57]} {[%emt 00:02:40]} Re5 {[%clk
00:00:41]} {[%emt 00:03:44]} 23. Bf6+ {[%clk 00:27:14]} {[%emt 00:03:11]} Bg7
{[%clk 00:00:44]} {[%emt 00:00:28]} 24. Bxe5 {[%clk 00:24:12]} {[%emt
00:03:31]} Bxe5 {[%clk 00:01:05]} {[%emt 00:00:09]} 25. Rf2 {[%clk 00:13:04]}
{[%emt 00:11:38]} Bg4 {[%clk 00:00:37]} {[%emt 00:00:59]} 26. Rdf1 {[%clk
00:12:43]} {[%emt 00:00:50]} Rf8 {[%clk 00:00:41]} {[%emt 00:00:27]} 27. Nxc6
{[%clk 00:11:17]} {[%emt 00:01:56]} bxc6 {[%clk 00:00:45]} {[%emt 00:00:26]} 28.
Rf6 {[%clk 00:10:40]} {[%emt 00:01:06]} Qg7 {[%clk 00:00:34]} {[%emt 00:00:42]}
29. Qh6 {[%clk 00:09:05]} {[%emt 00:02:04]} Qxh6+ {[%clk 00:00:32]} {[%emt
00:00:32]} 30. Rxh6 {[%clk 00:09:32]} {[%emt 00:00:03]} f6 {[%clk 00:00:41]}
{[%emt 00:00:22]} 31. Bxa6 {[%clk 00:08:49]} {[%emt 00:01:12]} Kg7 {[%clk
00:00:35]} {[%emt 00:00:37]} 32. Rh4 {[%clk 00:09:12]} {[%emt 00:00:06]} Be6
{[%clk 00:00:34]} {[%emt 00:00:33]} 33. Bd3 {[%clk 00:07:45]} {[%emt 00:01:56]}
c5 {[%clk 00:00:41]} {[%emt 00:00:23]} 34. c4 {[%clk 00:07:32]} {[%emt
00:00:43]} Kg6 {[%clk 00:00:40]} {[%emt 00:00:31]} 35. g3 {[%clk 00:07:14]}
{[%emt 00:00:48]} Rd8 {[%clk 00:00:35]} {[%emt 00:00:35]} 36. Ke3 {[%clk
00:06:18]} {[%emt 00:01:26]} Rd4 {[%clk 00:00:34]} {[%emt 00:00:31]} 37. Rb1
{[%clk 00:03:26]} {[%emt 00:03:21]} Rd7 {[%clk 00:00:33]} {[%emt 00:00:31]} 38.
Rb6 {[%clk 00:03:30]} {[%emt 00:00:26]} Re7 {[%clk 00:00:37]} {[%emt 00:00:27]}
39. Rf4 {[%clk 00:03:20]} {[%emt 00:00:39]} Bd4+ {[%clk 00:00:33]} {[%emt
00:00:35]} 40. Kd2 {[%clk 00:03:25]} {[%emt 00:00:24]} Be5 {[%clk 00:00:37]}
{[%emt 00:00:26]} 41. Rc6 {[%clk 00:02:48]} {[%emt 00:01:07]} Bd7 {[%clk
00:21:17]} {[%emt 00:09:50]} 42. Rxc5 {[%clk 00:30:06]} {[%emt 00:03:12]} Kg7
{[%clk 00:20:31]} {[%emt 00:01:16]} 43. Rf1 {[%clk 00:29:56]} {[%emt 00:00:40]}
Be8 {[%clk 00:20:14]} {[%emt 00:00:47]} 44. Rb1 {[%clk 00:29:57]} {[%emt
00:00:30]} Ra7 {[%clk 00:20:14]} {[%emt 00:00:30]} 45. Ke3 {[%clk 00:28:13]}
{[%emt 00:02:14]} Bd7 {[%clk 00:18:01]} {[%emt 00:02:43]} 46. Rcb5 {[%clk
00:26:34]} {[%emt 00:02:08]} 1-0

[Event "The Schackveckan 2023: IM-turnering"]
[Site "Goteborgs schackcentrum, Vegagatan 20, Gothenburg, Sweden"]
[Date "2023.08.10"]
[Round "8.5"]
[White "Berggren Torell, Harald"]
[Black "Olsson, William"]
[Result "1/2-1/2"]
[TimeControl "90 minutes for 40 moves + 30 minutes for the rest of the game + 30 seconds per move from move one."]
[BlackTitle "FM"]
[WhiteFideId "1714031"]
[BlackFideId "1741721"]
[WhiteElo "2061"]
[BlackElo "2400"]

1. e4 {[%clk 01:27:03]} {[%emt 00:03:49]} e5 {[%clk 01:30:57]} {[%emt
00:00:10]} 2. Nf3 {[%clk 01:27:14]} {[%emt 00:00:20]} Nc6 {[%clk 01:31:21]}
{[%emt 00:00:06]} 3. Nc3 {[%clk 01:24:11]} {[%emt 00:03:32]} Nf6 {[%clk
01:31:17]} {[%emt 00:00:35]} 4. d4 {[%clk 01:24:35]} {[%emt 00:00:06]} exd4
{[%clk 01:28:59]} {[%emt 00:02:47]} 5. Nxd4 {[%clk 01:24:44]} {[%emt 00:00:22]}
Bb4 {[%clk 01:21:20]} {[%emt 00:08:09]} 6. Nxc6 {[%clk 01:25:01]} {[%emt
00:00:13]} bxc6 {[%clk 01:21:36]} {[%emt 00:00:14]} 7. Bd3 {[%clk 01:25:23]}
{[%emt 00:00:08]} d5 {[%clk 01:12:35]} {[%emt 00:09:30]} 8. exd5 {[%clk
01:24:23]} {[%emt 00:01:31]} Qe7+ {[%clk 01:12:35]} {[%emt 00:00:30]} 9. Qe2
{[%clk 01:23:00]} {[%emt 00:01:53]} Qxe2+ {[%clk 01:11:44]} {[%emt 00:01:21]}
10. Kxe2 {[%clk 01:22:24]} {[%emt 00:01:06]} Bxc3 {[%clk 01:09:44]} {[%emt
00:02:30]} 11. bxc3 {[%clk 01:22:22]} {[%emt 00:00:32]} cxd5 {[%clk 01:10:03]}
{[%emt 00:00:11]} 12. Be3 {[%clk 01:20:06]} {[%emt 00:02:46]} O-O {[%clk
01:08:55]} {[%emt 00:01:37]} 13. f3 {[%clk 01:18:42]} {[%emt 00:01:55]} Be6
{[%clk 01:07:10]} {[%emt 00:02:14]} 14. Rhb1 {[%clk 01:12:35]} {[%emt
00:06:38]} a5 {[%clk 01:01:35]} {[%emt 00:06:06]} 15. Bb5 {[%clk 01:01:23]}
{[%emt 00:11:41]} Nd7 {[%clk 00:34:36]} {[%emt 00:27:29]} 16. Bc6 {[%clk
00:28:43]} {[%emt 00:33:09]} Rab8 {[%clk 00:31:31]} {[%emt 00:03:36]} 17. Bxd7
{[%clk 00:21:28]} {[%emt 00:07:44]} Bxd7 {[%clk 00:31:43]} {[%emt 00:00:18]} 18.
Kd2 {[%clk 00:11:45]} {[%emt 00:12:23]} f6 {[%clk 00:23:35]} {[%emt 00:08:38]}
19. Bf4 {[%clk 00:11:01]} {[%emt 00:01:13]} Rfc8 {[%clk 00:19:43]} {[%emt
00:04:22]} 20. Rxb8 {[%clk 00:10:59]} {[%emt 00:00:33]} Rxb8 {[%clk 00:20:07]}
{[%emt 00:00:05]} 21. Bxc7 {[%clk 00:10:44]} {[%emt 00:00:45]} Rb5 {[%clk
00:20:33]} {[%emt 00:00:05]} 22. a4 {[%clk 00:10:22]} {[%emt 00:00:52]} Rc5
{[%clk 00:20:58]} {[%emt 00:00:04]} 23. Bb6 {[%clk 00:10:37]} {[%emt 00:00:15]}
Rc4 {[%clk 00:21:23]} {[%emt 00:00:06]} 24. Bxa5 {[%clk 00:10:57]} {[%emt
00:00:10]} Rxa4 {[%clk 00:21:49]} {[%emt 00:00:04]} 25. Rxa4 {[%clk 00:11:18]}
{[%emt 00:00:08]} Bxa4 {[%clk 00:22:16]} {[%emt 00:00:03]} 26. Kd3 {[%clk
00:09:49]} {[%emt 00:02:00]} Bb5+ {[%clk 00:22:41]} {[%emt 00:00:04]} 27. Ke3
{[%clk 00:10:16]} {[%emt 00:00:03]} Kf7 {[%clk 00:23:05]} {[%emt 00:00:06]} 28.
Bc7 {[%clk 00:09:11]} {[%emt 00:01:36]} Bc4 {[%clk 00:23:28]} {[%emt 00:00:07]}
29. Bb8 {[%clk 00:09:36]} {[%emt 00:00:05]} Bb5 {[%clk 00:23:53]} {[%emt
00:00:04]} 30. Bc7 {[%clk 00:10:03]} {[%emt 00:00:04]} Bc4 {[%clk 00:24:20]}
{[%emt 00:00:03]} 31. Bb8 {[%clk 00:10:29]} {[%emt 00:00:04]} Bb5 {[%clk
00:24:45]} {[%emt 00:00:05]} 32. Bc7 {[%clk 00:10:51]} {[%emt 00:00:08]} Bc4
{[%clk 00:24:51]} {[%emt 00:00:32]} 1/2-1/2

[Event "The Schackveckan 2023: IM-turnering"]
[Site "Goteborgs schackcentrum, Vegagatan 20, Gothenburg, Sweden"]
[Date "2023.08.11"]
[Round "9.1"]
[White "Olsson, William"]
[Black "Storme, Isak"]
[Result "0-1"]
[TimeControl "90 minutes for 40 moves + 30 minutes for the rest of the game + 30 seconds per move from move one."]
[WhiteTitle "FM"]
[BlackTitle "IM"]
[WhiteFideId "1741721"]
[BlackFideId "1728113"]
[WhiteElo "2400"]
[BlackElo "2448"]

1. Nf3 {[%clk 01:30:55]} {[%emt 00:00:05]} d5 {[%clk 01:30:40]} {[%emt
00:00:21]} 2. c4 {[%clk 01:31:17]} {[%emt 00:00:08]} e6 {[%clk 01:31:03]}
{[%emt 00:00:06]} 3. g3 {[%clk 01:31:41]} {[%emt 00:00:07]} Nf6 {[%clk
01:31:20]} {[%emt 00:00:13]} 4. Bg2 {[%clk 01:31:55]} {[%emt 00:00:16]} d4
{[%clk 01:31:03]} {[%emt 00:00:47]} 5. O-O {[%clk 01:32:15]} {[%emt 00:00:10]}
Nc6 {[%clk 01:31:23]} {[%emt 00:00:10]} 6. e3 {[%clk 01:30:44]} {[%emt
00:02:01]} Bc5 {[%clk 01:30:50]} {[%emt 00:01:02]} 7. b4 {[%clk 01:15:03]}
{[%emt 00:16:12]} Bxb4 {[%clk 01:22:16]} {[%emt 00:09:04]} 8. exd4 {[%clk
01:14:43]} {[%emt 00:00:50]} O-O {[%clk 01:21:13]} {[%emt 00:01:32]} 9. Bb2
{[%clk 01:15:12]} {[%emt 00:00:03]} Be7 {[%clk 01:20:51]} {[%emt 00:00:51]} 10.
d3 {[%clk 01:13:55]} {[%emt 00:01:45]} Ne8 {[%clk 01:15:17]} {[%emt 00:06:05]}
11. Nbd2 {[%clk 01:12:56]} {[%emt 00:01:29]} Bf6 {[%clk 01:14:51]} {[%emt
00:00:56]} 12. Nb3 {[%clk 01:11:48]} {[%emt 00:01:39]} Rb8 {[%clk 01:06:15]}
{[%emt 00:09:06]} 13. Ne5 {[%clk 01:06:31]} {[%emt 00:05:47]} Ne7 {[%clk
01:06:09]} {[%emt 00:00:35]} 14. Ba3 {[%clk 01:02:41]} {[%emt 00:04:20]} Nd6
{[%clk 01:05:36]} {[%emt 00:01:04]} 15. Ng4 {[%clk 00:59:54]} {[%emt 00:03:17]}
Nef5 {[%clk 01:05:25]} {[%emt 00:00:40]} 16. Nxf6+ {[%clk 00:59:28]} {[%emt
00:00:57]} Qxf6 {[%clk 01:05:47]} {[%emt 00:00:07]} 17. Bb2 {[%clk 00:55:59]}
{[%emt 00:03:59]} b6 {[%clk 01:05:06]} {[%emt 00:01:11]} 18. Qe2 {[%clk
00:54:42]} {[%emt 00:01:47]} Bb7 {[%clk 01:03:53]} {[%emt 00:01:43]} 19. Bxb7
{[%clk 00:54:05]} {[%emt 00:01:08]} Nxb7 {[%clk 00:58:27]} {[%emt 00:05:55]} 20.
d5 {[%clk 00:54:20]} {[%emt 00:00:15]} Qg6 {[%clk 00:56:39]} {[%emt 00:02:19]}
21. dxe6 {[%clk 00:54:39]} {[%emt 00:00:10]} Qxe6 {[%clk 00:55:47]} {[%emt
00:01:22]} 22. Qf3 {[%clk 00:43:32]} {[%emt 00:11:37]} Rfe8 {[%clk 00:52:42]}
{[%emt 00:03:35]} 23. g4 {[%clk 00:33:18]} {[%emt 00:10:44]} Qe2 {[%clk
00:38:13]} {[%emt 00:15:00]} 24. Qxe2 {[%clk 00:32:47]} {[%emt 00:01:00]} Rxe2
{[%clk 00:38:31]} {[%emt 00:00:12]} 25. Bc3 {[%clk 00:33:10]} {[%emt 00:00:07]}
Nh4 {[%clk 00:38:20]} {[%emt 00:00:40]} 26. Nd4 {[%clk 00:33:31]} {[%emt
00:00:10]} Ree8 {[%clk 00:38:29]} {[%emt 00:00:20]} 27. Nc6 {[%clk 00:33:38]}
{[%emt 00:00:24]} Ra8 {[%clk 00:38:30]} {[%emt 00:00:29]} 28. Nb4 {[%clk
00:24:59]} {[%emt 00:09:09]} Rad8 {[%clk 00:35:58]} {[%emt 00:03:02]} 29. Rfd1
{[%clk 00:24:49]} {[%emt 00:00:41]} Nc5 {[%clk 00:35:21]} {[%emt 00:01:07]} 30.
Kf1 {[%clk 00:17:16]} {[%emt 00:08:03]} Re6 {[%clk 00:32:16]} {[%emt 00:03:34]}
31. h3 {[%clk 00:14:55]} {[%emt 00:02:52]} h5 {[%clk 00:28:58]} {[%emt
00:03:48]} 32. Nd5 {[%clk 00:13:18]} {[%emt 00:02:04]} hxg4 {[%clk 00:27:33]}
{[%emt 00:01:57]} 33. hxg4 {[%clk 00:13:45]} {[%emt 00:00:03]} c6 {[%clk
00:26:57]} {[%emt 00:01:07]} 34. Nf4 {[%clk 00:14:08]} {[%emt 00:00:06]} Red6
{[%clk 00:26:51]} {[%emt 00:00:36]} 35. Be5 {[%clk 00:08:51]} {[%emt 00:05:44]}
R6d7 {[%clk 00:26:53]} {[%emt 00:00:32]} 36. Nh5 {[%clk 00:09:16]} {[%emt
00:00:04]} Ne6 {[%clk 00:18:01]} {[%emt 00:09:22]} 37. d4 {[%clk 00:06:32]}
{[%emt 00:03:15]} Nf3 {[%clk 00:17:16]} {[%emt 00:01:14]} 38. Bxg7 {[%clk
00:05:36]} {[%emt 00:01:27]} Nxg7 {[%clk 00:17:20]} {[%emt 00:00:26]} 39. Nf6+
{[%clk 00:05:41]} {[%emt 00:00:24]} Kf8 {[%clk 00:17:42]} {[%emt 00:00:08]} 40.
Nxd7+ {[%clk 00:06:02]} {[%emt 00:00:10]} Rxd7 {[%clk 00:18:07]} {[%emt
00:00:06]} 41. d5 {[%clk 00:06:16]} {[%emt 00:00:15]} c5 {[%clk 00:18:23]}
{[%emt 00:00:13]} 42. Ke2 {[%clk 00:05:53]} {[%emt 00:00:50]} Ne5 {[%clk
00:18:23]} {[%emt 00:00:32]} 43. Rdc1 {[%clk 00:04:38]} {[%emt 00:01:48]} Ne8
{[%clk 00:17:52]} {[%emt 00:01:00]} 44. f4 {[%clk 00:04:48]} {[%emt 00:00:20]}
Nxg4 {[%clk 00:18:12]} {[%emt 00:00:10]} 45. Kf3 {[%clk 00:04:37]} {[%emt
00:00:41]} f5 {[%clk 00:16:14]} {[%emt 00:02:27]} 46. a4 {[%clk 00:04:38]}
{[%emt 00:00:30]} Nd6 {[%clk 00:15:30]} {[%emt 00:01:14]} 47. a5 {[%clk
00:04:58]} {[%emt 00:00:11]} Re7 {[%clk 00:14:50]} {[%emt 00:01:09]} 48. axb6
{[%clk 00:29:56]} {[%emt 00:05:33]} Re3+ {[%clk 00:42:46]} {[%emt 00:02:33]} 49.
Kg2 {[%clk 00:30:19]} {[%emt 00:00:07]} axb6 {[%clk 00:42:44]} {[%emt
00:00:32]} 50. Rab1 {[%clk 00:29:21]} {[%emt 00:01:28]} Re2+ {[%clk 00:41:55]}
{[%emt 00:01:18]} 51. Kf1 {[%clk 00:26:00]} {[%emt 00:03:53]} Ra2 {[%clk
00:40:23]} {[%emt 00:02:00]} 52. Rxb6 {[%clk 00:24:39]} {[%emt 00:01:52]} Nh2+
{[%clk 00:40:21]} {[%emt 00:00:32]} 53. Kg1 {[%clk 00:24:45]} {[%emt 00:00:24]}
Nf3+ {[%clk 00:40:46]} {[%emt 00:00:05]} 54. Kf1 {[%clk 00:25:05]} {[%emt
00:00:11]} Ne4 {[%clk 00:41:05]} {[%emt 00:00:11]} 55. Rg6 {[%clk 00:24:30]}
{[%emt 00:01:06]} Rf2# {[%clk 00:41:26]} {[%emt 00:00:08]} 0-1

[Event "The Schackveckan 2023: IM-turnering"]
[Site "Goteborgs schackcentrum, Vegagatan 20, Gothenburg, Sweden"]
[Date "2023.08.11"]
[Round "9.2"]
[White "Ustianovich, Nazar"]
[Black "Tryggestad, Andreas Garberg"]
[Result "1/2-1/2"]
[TimeControl "90 minutes for 40 moves + 30 minutes for the rest of the game + 30 seconds per move from move one."]
[WhiteTitle "FM"]
[BlackTitle "FM"]
[WhiteFideId "14109778"]
[BlackFideId "1513338"]
[WhiteElo "2314"]
[BlackElo "2233"]

1. Nf3 {[%clk 01:30:01]} {[%emt 00:00:58]} Nf6 {[%clk 01:30:51]} {[%emt
00:00:09]} 2. c4 {[%clk 01:29:36]} {[%emt 00:00:55]} c5 {[%clk 01:29:01]}
{[%emt 00:02:20]} 3. Nc3 {[%clk 01:29:03]} {[%emt 00:01:04]} Nc6 {[%clk
01:28:13]} {[%emt 00:01:17]} 4. e3 {[%clk 01:28:15]} {[%emt 00:01:18]} d5
{[%clk 01:28:22]} {[%emt 00:00:21]} 5. cxd5 {[%clk 01:28:28]} {[%emt 00:00:17]}
Nxd5 {[%clk 01:28:45]} {[%emt 00:00:07]} 6. Bb5 {[%clk 01:19:21]} {[%emt
00:09:37]} Nxc3 {[%clk 01:28:01]} {[%emt 00:01:15]} 7. bxc3 {[%clk 01:19:31]}
{[%emt 00:00:19]} Bd7 {[%clk 01:28:18]} {[%emt 00:00:13]} 8. O-O {[%clk
01:19:12]} {[%emt 00:00:49]} e6 {[%clk 01:28:11]} {[%emt 00:00:37]} 9. d4
{[%clk 01:18:01]} {[%emt 00:01:42]} Be7 {[%clk 01:27:42]} {[%emt 00:00:59]} 10.
Rb1 {[%clk 01:13:32]} {[%emt 00:04:59]} a6 {[%clk 01:22:18]} {[%emt 00:05:53]}
11. Bd3 {[%clk 01:13:21]} {[%emt 00:00:40]} b5 {[%clk 01:19:40]} {[%emt
00:03:09]} 12. Nd2 {[%clk 01:02:17]} {[%emt 00:11:35]} cxd4 {[%clk 01:14:13]}
{[%emt 00:05:57]} 13. exd4 {[%clk 00:50:38]} {[%emt 00:12:08]} O-O {[%clk
01:07:40]} {[%emt 00:07:04]} 14. Qc2 {[%clk 00:49:42]} {[%emt 00:01:26]} g6
{[%clk 01:01:37]} {[%emt 00:06:33]} 15. Ne4 {[%clk 00:47:45]} {[%emt 00:02:26]}
Rc8 {[%clk 00:55:50]} {[%emt 00:06:16]} 16. Qd2 {[%clk 00:46:01]} {[%emt
00:02:15]} f5 {[%clk 00:44:44]} {[%emt 00:11:37]} 17. Nc5 {[%clk 00:46:23]}
{[%emt 00:00:07]} Bxc5 {[%clk 00:44:01]} {[%emt 00:01:12]} 18. dxc5 {[%clk
00:46:07]} {[%emt 00:00:47]} Ne5 {[%clk 00:37:46]} {[%emt 00:06:45]} 19. Re1
{[%clk 00:40:26]} {[%emt 00:06:11]} Rxc5 {[%clk 00:32:19]} {[%emt 00:05:57]} 20.
Bf1 {[%clk 00:30:25]} {[%emt 00:10:31]} Rd5 {[%clk 00:25:52]} {[%emt 00:06:57]}
21. Qf4 {[%clk 00:30:51]} {[%emt 00:00:05]} Nd3 {[%clk 00:25:18]} {[%emt
00:01:03]} 22. Bxd3 {[%clk 00:31:14]} {[%emt 00:00:07]} Rxd3 {[%clk 00:25:47]}
{[%emt 00:00:02]} 23. Ba3 {[%clk 00:17:26]} {[%emt 00:14:16]} Re8 {[%clk
00:26:12]} {[%emt 00:00:06]} 24. Bc5 {[%clk 00:16:02]} {[%emt 00:01:54]} Qb8
{[%clk 00:19:14]} {[%emt 00:07:27]} 25. Qb4 {[%clk 00:08:20]} {[%emt 00:08:13]}
e5 {[%clk 00:14:45]} {[%emt 00:04:59]} 26. Rbd1 {[%clk 00:08:46]} {[%emt
00:00:04]} Rxd1 {[%clk 00:14:16]} {[%emt 00:00:59]} 27. Rxd1 {[%clk 00:09:14]}
{[%emt 00:00:01]} Be6 {[%clk 00:14:27]} {[%emt 00:00:19]} 28. h3 {[%clk
00:06:03]} {[%emt 00:03:42]} Bxa2 {[%clk 00:09:46]} {[%emt 00:05:11]} 29. Ra1
{[%clk 00:06:17]} {[%emt 00:00:15]} a5 {[%clk 00:07:29]} {[%emt 00:02:48]} 30.
Qxa5 {[%clk 00:06:46]} Bf7 {[%clk 00:07:42]} {[%emt 00:00:17]} 31. Qb4 {[%clk
00:06:47]} {[%emt 00:00:29]} Qb7 {[%clk 00:06:58]} {[%emt 00:01:14]} 32. Ra7
{[%clk 00:06:32]} {[%emt 00:00:45]} Qd5 {[%emt 00:00:33]} 33. Qxb5 {[%clk
00:05:17]} {[%emt 00:01:39]} Rc8 {[%clk 00:06:53]} {[%emt 00:00:38]} 34. Ra5
{[%clk 00:05:23]} {[%emt 00:00:24]} Qd2 {[%clk 00:02:33]} {[%emt 00:04:50]} 35.
Qb7 {[%clk 00:00:46]} {[%emt 00:05:07]} Rxc5 {[%clk 00:02:01]} {[%emt
00:01:02]} 36. Rxc5 {[%clk 00:00:56]} {[%emt 00:00:20]} Qc1+ {[%clk 00:02:26]}
{[%emt 00:00:05]} 37. Kh2 {[%clk 00:01:18]} {[%emt 00:00:08]} Qf4+ {[%clk
00:02:52]} {[%emt 00:00:04]} 38. Kg1 {[%clk 00:01:15]} {[%emt 00:00:34]} Qc1+
{[%clk 00:03:16]} {[%emt 00:00:05]} 39. Kh2 {[%clk 00:01:25]} {[%emt 00:00:21]}
Qf4+ {[%clk 00:03:40]} {[%emt 00:00:05]} 40. Kg1 {[%emt 00:00:34]} 1/2-1/2